Cogmind - Beta 15 @@@ ROGUE MODE // 2025.10.21 @ 11:50:47 Player: Ae Result: Destroyed by S-10 Pest with Light Assault Rifle Performance ------------- Evolutions (0) 0 Regions Visited (2) 400 Robots Destroyed (23) 115 Value Destroyed (495) 495 Prototype IDs (7) 140 Alien Tech Used (0) 0 Bonus (85) 85 TOTAL SCORE: 1235 Bonus ------- Follower Combat Kills 85 Cogmind --------- Core Integrity 0/250 Matter 274/300 Energy 125/125 System Corruption 3% Temperature Cool (0) Movement Rolling (125) Ox3 Location -10/Mines Parts ------- > --- POWER (1) -------- Light Ion Engine > --- PROPULSION (2) --- Light Treads Wheel > --- UTILITY (2) ------ Large Storage Unit Splice Drone Bay (6/6) > --- WEAPON (2) ------- Particle Gun Assault Rifle > --- INVENTORY (15) --- Deuterium Engine Light Treads Titanium Leg Improved Heat Sink Seismic Detector Improved Weapon Shielding Hacking Suite High-powered Tractor Beam Grenade Launcher Improved Datajack Hammer Peak State ------------ > --- POWER ------------ Light Ion Engine > --- PROPULSION ------- Light Treads Wheel > --- UTILITY ---------- Large Storage Unit Splice Drone Bay > --- WEAPON ----------- Particle Gun Assault Rifle > --- INVENTORY -------- Deuterium Engine Light Treads Titanium Leg Improved Heat Sink Seismic Detector Improved Weapon Shielding Hacking Suite High-powered Tractor Beam Grenade Launcher Improved Datajack Hammer [Rating: 16] Favorites ----------- Power Ion Engine Engine Ion Engine Propulsion Light Treads Treads Light Treads Wheel Wheel Utility Seismic Detector Device Seismic Detector Storage Large Storage Unit Weapon Assault Rifle Energy Gun Particle Gun Ballistic Gun Assault Rifle Launcher Grenade Launcher Special Melee Weapon Improved Datajack Build | -11 -10 -10 ------- Run | Yrd Mat Min Slots Evolved . | . . . Power . | . . . Propulsion . | . . . Utility . | . . . Weapon . | . . . Parts Attached 22 | 7 10 5 Power 4 | 1 3 . Engine 4 | 1 3 . Core . | . . . Reactor . | . . . Propulsion 6 | 2 3 1 Treads 3 | . 2 1 Leg . | . . . Wheel 3 | 2 1 . Hover . | . . . Flight . | . . . Utility 5 | 1 3 1 Device 3 | . 2 1 Storage 2 | 1 1 . Processor . | . . . Hackware . | . . . Protection . | . . . Artifact . | . . . Weapon 7 | 3 1 3 Energy Gun 2 | 1 . 1 Energy Cannon . | . . . Ballistic Gun 3 | 2 . 1 Ballistic Cannon . | . . . Launcher 1 | . 1 . Special Weapon . | . . . Impact Weapon . | . . . Slashing Weapon . | . . . Piercing Weapon . | . . . Special Melee Weapon 1 | . . 1 Unidentified Prototypes 1 | . . 1 Corrupted Parts 1 | . . 1 System Corruption 3 | . . 3 Parts Lost 9 | . 3 6 Power 2 | . 1 1 Propulsion 4 | . 2 2 Utility . | . . . Weapon 3 | . . 3 Highest Loss Streak 5 | . 1 5 To Critical Strikes . | . . . Average Backups 9 | 4 8 11 Power 1 | . 1 1 Propulsion 3 | 2 3 2 Utility 1 | . . 2 Weapon 2 | . 2 3 Tool/Special . | . . . Unused Backups 9 | . 2 7 Power 1 | . . 1 Propulsion 4 | . 2 2 Utility 3 | . . 3 Weapon 1 | . . 1 Tool/Special . | . . . Average Slot Usage (%) 99 | . 98 99 Engine 13 | . 13 14 Treads 13 | . 14 13 Wheel 13 | . 13 14 Device 13 | . 13 14 Storage 14 | . 14 14 Energy Gun 2 | . . 4 Ballistic Gun 25 | . 28 23 Peak Build Rating 16 | 6 9 16 Average Rating 8 | 5 8 9 On Entrance 4 | . 6 8 Naked Turns . | . . . Heaviest Build 36 | 11 29 36 Greatest Support 40 | 20 40 16 Greatest Overweight (x) 3 | . 2 3 Average Overweight (x) 1 | . 1 1 Largest Inventory Capacity 15 | 8 15 15 Average Capacity 12 | 7 10 15 Most Carried 15 | 7 10 15 Average Carried 9 | 4 8 11 Final Capacity 15 | 8 15 15 Final Carried 11 | 7 9 11 Class Distribution -------------------- 100% | Mutant Dominant Class ---------------- Mutant | -10/Materials Mutant | -10/Mines Resources | -11 -10 -10 ----------- Run | Yrd Mat Min Matter Collected 751 | 291 201 259 Remotely . | . . . Salvage Created 683 | 101 348 234 Parts 48 | 3 23 22 Haulers Intercepted . | . . . Recyclers Shooed . | . . . Parts Field Recycled . | . . . Retrieved Matter . | . . . Parts Self-Destructed . | . . . Prevented . | . . . Kills | -11 -10 -10 ------- Run | Yrd Mat Min Combat Hostiles Destroyed 20 | . 10 10 Guns 18 | . 9 9 AOE 2 | . 1 1 Classes Destroyed 5 | 2 3 . Tunneler 1 | 1 . . Recycler 1 | 1 . . Watcher 1 | . 1 . Swarmer 10 | . 3 7 Grunt 10 | . 7 3 Best Kill Streak 6 | 2 6 3 Combat Bots Only 5 | . 5 3 Max Kills in Single Turn 1 | 1 1 1 Gunslinging . | . . . Exploded 1 | . 1 1 Melee . | . . . Uniques/NPCs Destroyed . | . . . Combat | -11 -10 -10 -------- Run | Yrd Mat Min Hostile Shots Fired 106 | . 50 56 Missed 22 | . 11 11 Hits 84 | . 39 45 Projectile 84 | . 39 45 AOE 7 | . . 7 Critical Strikes 2 | . 1 1 Damage Taken 1216 | . 421 795 Core 252 | . 28 224 Absorbed by Shields . | . . . Core Remaining (%) 100 | 100 . . Volleys Fired 77 | 9 31 37 Largest 2 | 2 2 2 Hottest 40 | 40 40 40 Shots Fired 138 | 18 61 59 Gun 137 | 18 60 59 Cannon . | . . . Launcher 1 | . 1 . Special . | . . . Kinetic 127 | 18 60 49 Thermal . | . . . Explosive 1 | . 1 . Electromagnetic 10 | . . 10 Robot Hit Streak 10 | 5 10 9 Robot Miss Streak 5 | 2 2 5 Penetration Max . | . . . Secondary Targets 1 | . . 1 Max Gunslinging Chain 1 | . . 1 Shots Hit Robots 84 | 13 40 31 Core Hits 40 | 4 17 19 Critical Kills . | . . . Critical Parts Destroyed . | . . . Critical Strikes . | . . . Melee Attacks 1 | . . 1 Impact . | . . . Slashing . | . . . Piercing . | . . . Sneak Attacks 1 | . . 1 Combat Hostiles . | . . . Follow-up Attacks . | . . . Damage Inflicted 1009 | 141 447 421 Guns 904 | 141 407 356 Cannons . | . . . Explosions 105 | . 40 65 Melee . | . . . Ramming . | . . . Kinetic 780 | 141 407 232 Thermal 65 | . . 65 Explosive 40 | . 40 . Electromagnetic 124 | . . 124 Impact . | . . . Slashing . | . . . Piercing . | . . . Highest Corruption 3 | . . 3 Average Corruption 3 | . . 3 Corruption Purged . | . . . Corruption Blocked . | . . . Effects 5 | . . 5 Message Errors 1 | . . 1 Matter Fused 2 | . . 2 Data Loss (minor) 1 | . . 1 Alerts 1 | . . 1 Overload Shots . | . . . Overflow Damage 31 | . . 31 Projectiles . | . . . Explosions 31 | . . 31 Melee . | . . . Knockbacks . | . . . Impact . | . . . Kinetic . | . . . Secondary . | . . . Self-Inflicted Damage 90 | . . 90 Shots 2 | . . 2 Rammed . | . . . Targets Rammed . | . . . Kicked . | . . . Crushed . | . . . Highest Temperature 96 | . 27 96 Average Temperature 37 | . 11 54 Received Heat Transfer 279 | . 189 90 Siege Activations . | . . . Martial Activations . | . . . Shielding Activations . | . . . Robots Disrupted . | . . . Combat Hostiles . | . . . Robots Corrupted . | . . . Combat Hostiles . | . . . Parts Fried . | . . . Impact Corruptions . | . . . Robots Melted . | . . . Combat Hostiles . | . . . Parts Melted . | . . . Heat Transferred 100 | . . 100 Parts Sabotaged . | . . . Parts Stolen . | . . . Parts Stripped . | . . . Power Chain Reactions 2 | . . 2 Alert | -11 -10 -10 ------- Run | Yrd Mat Min Maximum Alert Level . | . . . Low Security (%) 100 | 100 100 100 Level 1 . | . . . Level 2 . | . . . Level 3 . | . . . Level 4 . | . . . Level 5 . | . . . High Security . | . . . Max Security . | . . . Peak Influence 156 | 5 156 116 Initial 34 | . . 34 Average 61 | 1 93 39 Influence Increases 786 | 10 411 365 Destroy 0b10 Robot/C 460 | . 200 260 Destroy 0b10 Robot/NC 15 | 10 5 . Destroy Leader 102 | . 42 60 Allied During Kill 9 | . . 9 Successful Hack 30 | . 30 . Select Force Hacks 60 | . 60 . Destroy Structure 20 | . 14 6 Lose Combat Pursuer 90 | . 60 30 Influence Decreases 786 | 10 321 455 Entered New Map 56 | . . 56 Time Decay 600 | 10 291 299 Lost Part 90 | . 30 60 Lost Ally 40 | . . 40 Squads Dispatched 3 | . 2 1 Investigation 3 | . 2 1 Extermination . | . . . Reinforcement . | . . . Assault . | . . . Garrison . | . . . Intercept . | . . . Searches Triggered . | . . . Construction Impeded . | . . . Haulers Reinforced . | . . . Active Scanning Responses . | . . . Cargo Convoy Interrupts . | . . . Stealth | -11 -10 -10 --------- Run | Yrd Mat Min Distress Signals 2 | . 2 . Communications Jammed . | . . . Distress Signals . | . . . Times Spotted 36 | . 17 19 Peak Tracking Total 6 | . 6 3 Tactical Retreats 4 | . 2 2 Traps | -11 -10 -10 ------- Run | Yrd Mat Min Traps Triggered . | . . . Indirectly . | . . . Trap Hack Attempts . | . . . Triggered . | . . . Disarmed . | . . . Reprogrammed . | . . . Reused . | . . . Traps Extracted . | . . . Installed . | . . . Triggered . | . . . Machines | -11 -10 -10 ---------- Run | Yrd Mat Min Machines Disabled . | . . . Max in Single Turn . | . . . Machines Repaired . | . . . Machines Dismantled . | . . . Machines Sabotaged . | . . . Overloaded Fab Kills . | . . . Hacking | -11 -10 -10 --------- Run | Yrd Mat Min Machines Accessed 10 | . 8 2 Terminals 6 | . 6 . Fabricators . | . . . Repair Stations . | . . . Recycling Units 2 | . 2 . Scanalyzers . | . . . Garrison Access . | . . . Total Hacks 34 | . 32 2 Successful 23 | . 21 2 Failed 11 | . 11 . Catastrophic 1 | . 1 . Database Lockouts . | . . . Manual 18 | . 18 . Terminals 30 | . 30 . Fabricators . | . . . Repair Stations . | . . . Recycling Units 2 | . 2 . Scanalyzers . | . . . Garrison Access . | . . . Terminal Hacks 11 | . 9 2 Prototype ID Bank 5 | . 5 . Open Door 2 | . . 2 Locate Traps 1 | . 1 . Hauler Manifests 1 | . 1 . Registered Components 1 | . 1 . Zone Layout 1 | . 1 . Fabricator Hacks . | . . . Repair Station Hacks . | . . . Recycling Unit Hacks . | . . . Scanalyzer . | . . . Garrison Access Hacks . | . . . Unauthorized Hacks 12 | . 12 . Terminals 10 | . 10 . Botnet 4 | . 4 . Operators 1 | . 1 . Skim 5 | . 5 . Fabricators . | . . . Repair Stations . | . . . Recycling Units 2 | . 2 . Tunnel 2 | . 2 . Scanalyzers . | . . . Garrison Access . | . . . Data Cores Recovered . | . . . Used . | . . . Hacking Detections 6 | . 6 . Full Trace Events . | . . . Feedback Events . | . . . Feedback Blocked . | . . . Robot Schematics Acquired . | . . . Robots Built . | . . . Authchips . | . . . Time . | . . . Total Robot Build Rating . | . . . Part Schematics Acquired . | . . . Parts Built . | . . . Authchips . | . . . Time . | . . . Total Part Build Rating . | . . . Parts Repaired . | . . . Time . | . . . Parts Recycled . | . . . Recycled Matter . | . . . Retrieved Matter . | . . . Retrieved Components . | . . . Parts Scanalyzed . | . . . Part Schematics Acquired . | . . . Parts Damaged . | . . . Bothacking | -11 -10 -10 ------------ Run | Yrd Mat Min Used RIF Installer . | . . . Robots Hacked 1 | . . 1 Non-combat 1 | . . 1 Combat . | . . . Robot Hacks Applied 1 | . . 1 parse_system 1 | . . 1 Relay Couplers Released . | . . . Fabnet Peak Effective % . | . . . Robots Rewired . | . . . Allies Hacked . | . . . Hacks Repelled . | . . . Allies | -11 -10 -10 -------- Run | Yrd Mat Min Total Allies 3 | . . 3 Largest Group 3 | . . 3 Highest-Rated Group 40 | . . 40 Highest-Rated Ally 16 | . . 16 Total Orders . | . . . Ally Attacks 19 | . . 19 Total Damage 204 | . . 204 Kills 3 | . . 3 Allies Corrupted . | . . . Allies Melted . | . . . Intel | -11 -10 -10 ------- Run | Yrd Mat Min Active Infowar (turns) 1055 | . 419 636 Seismic 1055 | . 419 636 Robot Analysis Total . | . . . Derelict Logs Recovered 2 | . . 2 Drone Launches . | . . . Drone Recoveries . | . . . Exploration | -11 -10 -10 ------------- Run | Yrd Mat Min Turns Passed 1478 | 82 666 730 Spaces Moved 1055 | 50 496 509 Core 1 | 1 . . Treads 6 | . 6 . Legs . | . . . Wheels 1048 | 49 490 509 Hover . | . . . Flight . | . . . Fastest Speed 50 | 50 80 110 Average Speed 107 | 79 102 115 Slowest Speed 160 | 80 160 125 Overloaded Moves . | . . . Propulsion Burnouts . | . . . Robots Hopped . | . . . Potential Cave-ins . | . . . Cave-ins Triggered . | . . . Exploration Rate (%) 60 | 5 80 97 Regions Visited 2 Branch Regions 1 Pre-discovered Areas 2 | . 2 . Known Exits Taken . | . . . Unknown Exits Taken 2 | 1 1 . Scrap Searched 1 | . . 1 Spaces Dug . | . . . Terrain Destroyed 20 | . 14 6 Melee . | . . . Projectile . | . . . AOE 20 | . 14 6 Terrain Rammed . | . . . Walls Destroyed . | . . . Machines Disabled . | . . . Actions | -11 -10 -10 --------- Run | Yrd Mat Min Total 1265 | 72 596 597 Wait 76 | . 45 31 Move 1053 | 49 495 509 Hop . | . . . Pick Up 20 | 7 7 6 Fast Attach 8 | 6 . 2 Attach 10 | . 4 6 Detach 2 | . . 2 Swap 14 | 1 10 3 Drop 4 | . 4 . Fire 77 | 9 31 37 Melee 1 | . . 1 Ram . | . . . Kick . | . . . Crush . | . . . Escape Stasis . | . . . Rewire . | . . . Trap . | . . . Miscellaneous . | . . . Route ------- -11/Scrapyard -10/Materials (discovered 6 exits: *Mat x3 / *Min x2 / [*Sub]) -10/Mines (discovered 3 exits: *Mat x2 / [*Sub]) History --------- Turn | Location | Event 28 | -11/Scrapyard | Discovered new exit (range 15) 83 | -11/Scrapyard | Entered Materials 301 | -10/Materials | Build established: Mutant 480 | -10/Materials | Discovered new exit (range 16) 560 | -10/Materials | Discovered new exit (range 10) 672 | -10/Materials | Discovered new exit (range 15) 707 | -10/Materials | Identified exit to Materials 742 | -10/Materials | Discovered new exit (range 8) 749 | -10/Materials | Entered Mines 799 | -10/Mines | Assisted by bots powering up and referring to "LRC-V3" 995 | -10/Mines | Discovered exit to Materials (range 6) 1005 | -10/Mines | Met a Derelict shopkeep closing up shop 1157 | -10/Mines | Assembled infested the area 1219 | -10/Mines | Core integrity fell below 50% 1225 | -10/Mines | Core integrity fell below 20% 1255 | -10/Mines | Lost 5 parts (1p2n2w) 1277 | -10/Mines | Learned 2 Materials zone layouts 1288 | -10/Mines | Learned 2 Materials zone layouts 1346 | -10/Mines | Discovered new exit (range 13) 1383 | -10/Mines | Found the Drone Emporium 1388 | -10/Mines | Found Prototype Device 1388 | -10/Mines | Identified Splice Drone Bay 1436 | -10/Mines | Discovered exit to Materials (range 14) 1479 | -10/Mines | Destroyed by S-10 Pest with Light Assault Rifle Last Messages --------------- 01340_ Acquired 10 matter. 01341_ T-07 Excavator is excavating. 01346_ EXIT=FOUND 01358_ T-07 Excavator is excavating. 01368_ System corrupted: Component data lost. 01382_ Connecting with SHOP.Sys... >>Open Door Sealed Doors opened. 01383_ KF-T5U(g): "Well that was anticlimactic. Heard you outside and thought you were from the Merchants Guild. I haven't even officially opened my Drone Emporium yet but am totally ready to tell them where they can shove that C&D." 01385_ KF-T5U(g): "I'm a fan of the free market. Free drones for all! No strings attached!" 01388_ Acquired Prototype Device. 01388_ Identified Splice Drone Bay. 01391_ System corrupted: Matter fused (-10). 01411_ System corrupted: IFF burst signal emitted. 01436_ EXIT=FOUND: MATERIALS 01442_ K-01 Serf cleans the Core Extractor. 01464_ %W67WWELZ1CXMIFHVLRU4EWENWVV <3T=YE: Map ----- +----------------------------------------------------+ | # #???# #??????????# [ #??## ##???????### | | # #???# #??????????# """ """=#???# ##?########## | | #???# #??#######?# """ """ #???# #??# # | | # #???# #?## ### """ """ #???# #??# # | | # #???# ### #???# ####= # | | #???# ## ## #???# %=%[ """ # | | ###???# # """ #?#### ######???# #### """ # | | ??????# """ ##???# ????????# #??# """ # | | ??????#### """ ###?# ????????# #??# # | | ?????????## ### ????????# ##??# # | | ??????????## ###????????# #???###### ### | | ???????????## #?????????# ??? #??# #?? | | ????????????### #?????????# #???# #??# #?? | | ########??????## < #????????? #???# #??# #?? | | #???????## ##?????????# ????# #??# #?? | | #????????# #####??????????# ????# #??# #?? | | ##### #????????# ######?????????# #???# #### #?? | | ????# #????????# #?????????# ##?# #?? | | ????#[ #????????# #??????#? ####### #?? | | ????# #????????### ## #??????? #### #?? | | ????# %#??????????# ## #??????? #?? | | ????# #??????????# ## #???????# ### #?? | | ????# #??????????# ## #??????## ? #?# #?? | | ????# #??????????# ## ####??## #??# #?# #?? | | ????# #??????????# ## #?## #???# #?# #?? | | ##### #??????????# #####@#?# #???# ### ### | | #????###???# #???#s### #???# ## | | # ###### ##??# ##### ## """ #???# # | | # # ## ##?# ## =""" ##### | | #?#### ## *%""" | | ####?# ###### != | | ### #?# #????### # #### | | # ### ### #??????## ## ##### | | ### #?# #???????# ## ## | | # ### ##?#####[#???????# ###### ### | | #### ##??????#%#???????# ##??# #?### | | ???# ##???????#=#???????# #### #???## | | ???# ### ###????????#=#???????## #???## | | ???# #?# #?????????## ####?????## ##### #??## | | ???# ###[########### % #??????####???# #??# | | ???# %=%= [ #?????????????# #?# | | #### !%[= #?????????????# #?# | | =# ######### #?????????????# #### | | ! ! ##*######### """ #????????????## #### | | #! *### """ #???????????## ###### | | ## #?########### """ #????????#### #???? | | ?# #???????????#######???????##""## =%< #???? | | ?## = ##?????????????????????????#" #X *%!#???? | | ??######??????????????????????????#" * [ ##??? | | ??????????????????????????????????#" #??? | +----------------------------------------------------+ Best States ------------- Heat Dissipation 39 Energy Generation 10 Energy Capacity 250 Matter Stores 300 Matter Capacity 300 Sight Range 16 Terrain Scan Density 10 Evasion (%) 44 Recoil Reduction 2 Item Schematics ----------------- None Robot Schematics ------------------ None Fabricated ------------ Nothing Repaired ---------- Nothing Alien Tech Used ----------------- None Achievements -------------- None Challenges ------------ None Game ------ Seed JammingRagnarokMinigun Manual? 0 Play Time 00:20:29 Cumulative 98.5 hours Start 2025.10.21 @ 11:18:15 End 2025.10.21 @ 11:50:47 Sessions 1 Manual Loads 0 Difficulty Rogue Special Mode None Game No. 165 Rogue 137 Adventurer 28 Explorer 0 Win Type - Total 0 Types 0/0/0/0/0/0/0/0/0/0 Lore% 41 Gallery% 32 Achievement% 34 Wizard Run 0 Options --------- Layout 0 ASCII 0 Keyboard 1 Movement Numpad Keybinds 0 Fullscreen 2 Font 28/SmallcapsGlow Map View 84x54 Zoom Use 0% Tactical HUD 1 Map Filters NONE Filters NONE Steam 1 RUN: 219db4dd-766e-4b14-ab2a-bb8d887fa729